[Event "17th Aeroflot Open-A 2019"]
[Site "Moscow"]
[Date "2019.02.20"]
[Round "1.2"]
[White "Fedoseev, Vladimir"]
[Black "Petrosyan, Manuel"]
[Result "1-0"]
[ECO "A45"]
[WhiteElo "2715"]
[BlackElo "2564"]
[Annotator "RC"]
[PlyCount "101"]
[EventDate "2019.02.19"]
[EventCountry "RUS"]
[SourceTitle "playchess.com"]
[Source "ChessBase"]
[SourceQuality "1"]
[TimeControl "40/5400+30:1800+30"]

1. d4 {[%emt 0:00:00]} Nf6 {[%emt 0:00:43]} 2. Bg5 {[%emt 0:00:00]} e6 {[%emt 0:00:34]} 3. Nd2 {[%emt 0:00:27]} h6 {[%emt 0:03:28]} 4. Bh4 {[%emt 0:00:15]} c5 {[%emt 0:01:20]} 5. e3 {[%emt 0:01:57]} Nc6 {[%emt 0:02:33]} 6. c3 {[%emt 0:00:57]} b6 {[%emt 0:02:12]} 7. Ngf3 {[%emt 0:04:07]} Be7 {[%emt 0:03:38]} 8. Bd3 {[%emt 0:01:29]} Bb7 {[%emt 0:01:29]} 9. a3 {[%emt 0:03:06]} O-O {[%emt 0:03:40]} 10. O-O {[%emt 0:01:19]} d5 {[%emt 0:05:05]} 11. Qe2 {[%emt 0:01:23]} Ne4 {[%emt 0:05:15]} 12. Bxe7 {[%emt 0:00:21]} Nxe7 {[%emt 0:00:15]} 13. Rad1 {[%emt 0:04:02]} Qc7 {[%emt 0:01:14]} 14. Bb1 {[%emt 0:02:57]} a5 {[%emt 0:05:24]} 15. Ne5 {[%emt 0:05:17]} Ba6 {[%emt 0:07:04]} 16. Nd3 {[%emt 0:00:10]} Ng6 {[%emt 0:05:19]} 17. Qg4 {[%emt 0:04:56]} Nf6 {[%emt 0:02:46]} 18. Qh3 {[%emt 0:03:17]} cxd4 {[%emt 0:05:57]} 19. cxd4 {[%emt 0:07:27]} e5 {[%emt 0:07:57]} 20. dxe5 {[%emt 0:09:18]} Nxe5 {[%emt 0:03:50]} 21. Nf3 {[%emt 0:01:22]} Bxd3 {[%emt 0:00:11]} 22. Bxd3 {[%emt 0:00:13]} Nxf3+ {[%emt 0:00:04]} 23. Qxf3 {[%emt 0:00:32]} Qe5 {[%emt 0:00:02]} 24. Rd2 {[%emt 0:08:04]} Ne4 {[%emt 0:00:07]} 25. Rc2 {[%emt 0:04:35]} Rac8 {[%emt 0:02:07]} 26. Rfc1 {[%emt 0:00:46]} Rxc2 {[%emt 0:01:14]} 27. Rxc2 {[%emt 0:00:07]} Rd8 {[%emt 0:00:31]} 28. Qd1 {[%emt 0:03:16]} Nc5 {[%emt 0:05:22]} 29. Bf1 {[%emt 0:00:16]} g6 {[%emt 0:03:27]} 30. g3 {[%emt 0:03:24]} Kg7 {[%emt 0:05:13]} 31. Rd2 {[%emt 0:09:24]} Ne4 {[%emt 0:01:14]} 32. Rd4 {[%emt 0:00:08]} Qf5 {[%emt 0:00:22]} 33. f3 {[%emt 0:00:22]} Ng5 {[%emt 0:01:30]} 34. f4 {[%emt 0:00:11]} Ne6 {[%emt 0:07:26]} 35. e4 {[%emt 0:00:13]} Qf6 {[%emt 0:03:38]} 36. e5 {[%emt 0:01:53]} Qe7 {[%emt 0:00:05]} 37. Rxd5 {[%emt 0:00:04]} Qc7 {[%emt 0:04:32]} 38. Rxd8 {[%emt 0:00:24]} Nxd8 {[%emt 0:00:01]} 39. Qd5 {[%emt 0:00:14]} Ne6 {[%emt 0:01:42]} 40. Bc4 {[%emt 0:00:00]} a4 {[%emt 0:00:00]} 41. Kf2 {[%emt 0:04:02]} h5 {[%emt 0:01:22]} 42. Kg2 {[%emt 0:10:23]} Qc8 {[%emt 0:05:05]} 43. Kf2 {[%emt 0:02:50]} Qc7 {[%emt 0:00:11]} 44. Ke1 {[%emt 0:00:35]} b5 {[%emt 0:07:04]} 45. Qxb5 {[%emt 0:00:41]} Qa7 {[%emt 0:00:07]} 46. Bxe6 {[%emt 0:01:16]} fxe6 {[%emt 0:01:05]} 47. Kf1 {[%emt 0:02:11]} Qe3 {[%emt 0:06:27]} 48. Qd7+ {[%emt 0:03:02]} Kh6 {[%emt 0:01:54]} 49. Qxe6 {[%emt 0:05:10]} Qf3+ {[%emt 0:00:17]} 50. Kg1 {[%emt 0:00:33]} h4 {[%emt 0:00:08]} 51. Qf6 {[%emt 0:03:41]} 1-0

[Event "17th Aeroflot Open-A 2019"]
[Site "Moscow"]
[Date "2019.02.20"]
[Round "1.3"]
[White "Fier, Alexandr"]
[Black "Wang, Hao"]
[Result "1/2-1/2"]
[ECO "B18"]
[WhiteElo "2561"]
[BlackElo "2714"]
[Annotator "RC"]
[PlyCount "111"]
[EventDate "2019.02.19"]
[EventCountry "RUS"]
[SourceTitle "playchess.com"]
[Source "ChessBase"]
[SourceQuality "1"]
[TimeControl "40/5400+30:1800+30"]

1. e4 {[%emt 0:00:00]} c6 {[%emt 0:00:00]} 2. d4 {[%emt 0:00:00]} d5 {[%emt 0:00:00]} 3. Nc3 {[%emt 0:00:00]} dxe4 {[%emt 0:00:00]} 4. Nxe4 {[%emt 0:00:00]} Bf5 {[%emt 0:00:00]} 5. Ng3 {[%emt 0:00:00]} Bg6 {[%emt 0:00:00]} 6. h4 {[%emt 0:00:00]} h6 {[%emt 0:00:01]} 7. Nf3 {[%emt 0:00:00]} e6 {[%emt 0:00:04]} 8. Ne5 {[%emt 0:04:05]} Bh7 {[%emt 0:00:11]} 9. Bd3 {[%emt 0:00:04]} Bxd3 {[%emt 0:00:07]} 10. Qxd3 {[%emt 0:00:03]} Nd7 {[%emt 0:00:06]} 11. Bf4 {[%emt 0:03:16]} Nxe5 {[%emt 0:07:48]} 12. Bxe5 {[%emt 0:01:09]} Qa5+ {[%emt 0:00:03]} 13. c3 {[%emt 0:00:14]} Nf6 {[%emt 0:00:05]} 14. O-O {[%emt 0:02:06]} Ng4 {[%emt 0:08:16]} 15. Rfe1 {[%emt 0:03:28]} O-O-O {[%emt 0:18:56]} 16. Qf3 {[%emt 0:07:17]} Nxe5 {[%emt 0:00:32]} 17. dxe5 {[%emt 0:02:37]} Qc7 {[%emt 0:00:54]} 18. Rad1 {[%emt 0:02:19]} Rd5 {[%emt 0:00:40]} 19. c4 {[%emt 0:02:20]} Rxd1 {[%emt 0:03:56]} 20. Rxd1 {[%emt 0:01:48]} Qxe5 {[%emt 0:01:47]} 21. Qxf7 {[%emt 0:00:50]} Bd6 {[%emt 0:00:19]} 22. Qg6 {[%emt 0:06:46]} Rd8 {[%emt 0:14:04]} 23. Ne4 {[%emt 0:04:25]} Be7 {[%emt 0:00:21]} 24. Rxd8+ {[%emt 0:02:23]} Kxd8 {[%emt 0:01:25]} 25. g3 {[%emt 0:11:02]} Qxb2 {[%emt 0:02:38]} 26. Qxe6 {[%emt 0:00:05]} Qxa2 {[%emt 0:00:06]} 27. Kg2 {[%emt 0:05:13]} Qb2 {[%emt 0:05:46]} 28. c5 {[%emt 0:06:33]} Qd4 {[%emt 0:03:02]} 29. Qg8+ {[%emt 0:01:35]} Kd7 {[%emt 0:00:16]} 30. f3 {[%emt 0:00:06]} a5 {[%emt 0:13:46]} 31. Qb8 {[%emt 0:03:56]} Qb2+ {[%emt 0:02:53]} 32. Kh3 {[%emt 0:00:02]} Qb3 {[%emt 0:04:53]} 33. Nd6 {[%emt 0:03:55]} Qe6+ {[%emt 0:00:10]} 34. g4 {[%emt 0:00:02]} Bxd6 {[%emt 0:00:09]} 35. cxd6 {[%emt 0:00:02]} Qxd6 {[%emt 0:00:15]} 36. Qxb7+ {[%emt 0:00:02]} Qc7 {[%emt 0:00:07]} 37. Qa8 {[%emt 0:00:56]} Qe5 {[%emt 0:01:06]} 38. h5 {[%emt 0:01:22]} Qc3 {[%emt 0:01:22]} 39. Kg2 {[%emt 0:07:35]} Qe5 {[%emt 0:08:22]} 40. Qa7+ {[%emt 0:00:00]} Ke6 {[%emt 0:00:00]} 41. Qa8 {[%emt 0:05:19]} Qb2+ {[%emt 0:02:00]} 42. Kg3 {[%emt 0:03:07]} Qc3 {[%emt 0:00:20]} 43. Kg2 {[%emt 0:00:32]} Kd5 {[%emt 0:02:02]} 44. Qg8+ {[%emt 0:06:51]} Kc5 {[%emt 0:00:29]} 45. Qf8+ {[%emt 0:00:02]} Kc4 {[%emt 0:02:59]} 46. Qf7+ {[%emt 0:02:17]} Kd3 {[%emt 0:00:58]} 47. Qf5+ {[%emt 0:01:24]} Ke2 {[%emt 0:04:43]} 48. Qe4+ {[%emt 0:00:19]} Kd2 {[%emt 0:05:51]} 49. f4 {[%emt 0:01:39]} c5 {[%emt 0:02:01]} 50. g5 {[%emt 0:00:55]} c4 {[%emt 0:01:45]} 51. gxh6 {[%emt 0:00:09]} gxh6 {[%emt 0:00:05]} 52. f5 {[%emt 0:00:03]} Qg7+ {[%emt 0:05:44]} 53. Kf3 {[%emt 0:01:12]} c3 {[%emt 0:00:04]} 54. Qe2+ {[%emt 0:00:04]} Kc1 {[%emt 0:00:09]} 55. Qf1+ {[%emt 0:00:02]} Kb2 {[%emt 0:00:18]} 56. Qb5+ {[%emt 0:00:03]} 1/2-1/2

[Event "17th Aeroflot Open-A 2019"]
[Site "Moscow"]
[Date "2019.02.20"]
[Round "1.4"]
[White "Dubov, Daniil"]
[Black "Abdusattorov, Nodirbek"]
[Result "1/2-1/2"]
[ECO "A46"]
[WhiteElo "2703"]
[BlackElo "2560"]
[Annotator "RC"]
[PlyCount "76"]
[EventDate "2019.02.19"]
[EventCountry "RUS"]
[SourceTitle "playchess.com"]
[Source "ChessBase"]
[SourceQuality "1"]
[TimeControl "40/5400+30:1800+30"]

1. d4 {[%emt 0:00:00]} Nf6 {[%emt 0:00:00]} 2. Nf3 {[%emt 0:00:00]} e6 {[%emt 0:00:06]} 3. Bg5 {[%emt 0:00:57]} d5 {[%emt 0:01:59]} 4. c4 {[%emt 0:02:34]} Be7 {[%emt 0:00:06]} 5. Nc3 {[%emt 0:00:37]} h6 {[%emt 0:00:20]} 6. Bf4 {[%emt 0:01:19]} O-O {[%emt 0:00:23]} 7. e3 {[%emt 0:00:05]} c5 {[%emt 0:00:05]} 8. dxc5 {[%emt 0:00:40]} Bxc5 {[%emt 0:00:17]} 9. a3 {[%emt 0:00:24]} Nc6 {[%emt 0:00:21]} 10. Qc2 {[%emt 0:01:31]} Qa5 {[%emt 0:08:35]} 11. Ra2 {[%emt 0:01:54]} Ne4 {[%emt 0:06:47]} 12. Bd3 {[%emt 0:04:17]} Nxc3 {[%emt 0:01:09]} 13. bxc3 {[%emt 0:00:18]} d4 {[%emt 0:02:05]} 14. exd4 {[%emt 0:01:45]} Nxd4 {[%emt 0:00:24]} 15. Nxd4 {[%emt 0:00:42]} Bxd4 {[%emt 0:00:12]} 16. O-O {[%emt 0:00:05]} Be5 {[%emt 0:06:02]} 17. Be3 {[%emt 0:03:45]} Qc7 {[%emt 0:03:07]} 18. f4 {[%emt 0:02:25]} Bd6 {[%emt 0:00:53]} 19. Qf2 {[%emt 0:01:00]} b6 {[%emt 0:05:15]} 20. Bd4 {[%emt 0:02:38]} Bc5 {[%emt 0:01:45]} 21. Re2 {[%emt 0:01:38]} Rd8 {[%emt 0:04:26]} 22. Re5 {[%emt 0:06:08]} Ba6 {[%emt 0:05:47]} 23. Rfe1 {[%emt 0:12:04]} Bxd4 {[%emt 0:12:13]} 24. cxd4 {[%emt 0:00:44]} Qd6 {[%emt 0:02:45]} 25. c5 {[%emt 0:09:18]} bxc5 {[%emt 0:00:33]} 26. Be4 {[%emt 0:00:11]} Rac8 {[%emt 0:06:00]} 27. dxc5 {[%emt 0:00:37]} Qd4 {[%emt 0:01:44]} 28. Qxd4 {[%emt 0:05:42]} Rxd4 {[%emt 0:00:51]} 29. f5 {[%emt 0:00:17]} Bd3 {[%emt 0:08:40]} 30. Bb7 {[%emt 0:04:44]} Rc7 {[%emt 0:00:57]} 31. fxe6 {[%emt 0:00:22]} fxe6 {[%emt 0:00:43]} 32. Bf3 {[%emt 0:01:20]} Bc4 {[%emt 0:01:29]} 33. Rc1 {[%emt 0:05:43]} Kf7 {[%emt 0:02:56]} 34. Kf2 {[%emt 0:01:42]} Kf6 {[%emt 0:03:55]} 35. Re4 {[%emt 0:01:04]} Rxe4 {[%emt 0:00:28]} 36. Bxe4 {[%emt 0:00:02]} Ba2 {[%emt 0:00:38]} 37. Ke3 {[%emt 0:02:26]} Ke5 {[%emt 0:00:29]} 38. g3 {[%emt 0:00:56]} Bd5 {[%emt 0:01:02]} 1/2-1/2

[Event "17th Aeroflot Open-A 2019"]
[Site "Moscow"]
[Date "2019.02.20"]
[Round "1.5"]
[White "Karthikeyan, Murali"]
[Black "Kovalev, Vladislav"]
[Result "1/2-1/2"]
[ECO "C77"]
[WhiteElo "2560"]
[BlackElo "2703"]
[Annotator "RC"]
[PlyCount "35"]
[EventDate "2019.02.19"]
[EventCountry "RUS"]
[SourceTitle "playchess.com"]
[Source "ChessBase"]
[SourceQuality "1"]
[TimeControl "40/5400+30:1800+30"]

1. e4 {[%emt 0:00:00]} e5 {[%emt 0:00:00]} 2. Nf3 {[%emt 0:00:00]} Nc6 {[%emt 0:00:00]} 3. Bb5 {[%emt 0:00:00]} a6 {[%emt 0:00:00]} 4. Ba4 {[%emt 0:00:00]} Nf6 {[%emt 0:00:00]} 5. d3 {[%emt 0:00:00]} b5 {[%emt 0:00:14]} 6. Bb3 {[%emt 0:00:06]} Bc5 {[%emt 0:00:04]} 7. c3 {[%emt 0:01:20]} d6 {[%emt 0:00:15]} 8. Bg5 {[%emt 0:00:44]} h6 {[%emt 0:01:31]} 9. Bh4 {[%emt 0:00:17]} Bd7 {[%emt 0:20:43]} 10. Nbd2 {[%emt 0:07:00]} Bb6 {[%emt 0:05:00]} 11. Nf1 {[%emt 0:07:01]} g5 {[%emt 0:03:52]} 12. Bg3 {[%emt 0:00:54]} Ne7 {[%emt 0:04:11]} 13. Ne3 {[%emt 0:07:32]} Ng6 {[%emt 0:01:14]} 14. O-O {[%emt 0:13:52]} Nh7 {[%emt 0:17:57]} 15. Nd2 {[%emt 0:14:00]} Nf6 {[%emt 0:08:29]} 16. Nf3 {[%emt 0:15:34]} Nh7 {[%emt 0:00:14]} 17. Nd2 {[%emt 0:00:16]} Nf6 {[%emt 0:06:08]} 18. Nf3 {[%emt 0:06:34]} 1/2-1/2

[Event "17th Aeroflot Open-A 2019"]
[Site "Moscow"]
[Date "2019.02.20"]
[Round "1.7"]
[White "Lalith Babu M R"]
[Black "Inarkiev, Ernesto"]
[Result "0-1"]
[ECO "D02"]
[WhiteElo "2556"]
[BlackElo "2692"]
[Annotator "RC"]
[PlyCount "84"]
[EventDate "2019.02.19"]
[EventCountry "RUS"]
[SourceTitle "playchess.com"]
[Source "ChessBase"]
[SourceQuality "1"]
[TimeControl "40/5400+30:1800+30"]

1. Nf3 {[%emt 0:00:00]} d5 {[%emt 0:00:00]} 2. d4 {[%emt 0:00:00]} Nf6 {[%emt 0:00:00]} 3. c4 {[%emt 0:00:00]} e6 {[%emt 0:00:00]} 4. g3 {[%emt 0:00:00]} Bb4+ {[%emt 0:00:00]} 5. Bd2 {[%emt 0:00:00]} Be7 {[%emt 0:00:00]} 6. Bg2 {[%emt 0:00:00]} O-O {[%emt 0:00:01]} 7. O-O {[%emt 0:00:03]} c6 {[%emt 0:00:09]} 8. Qc2 {[%emt 0:00:18]} Nbd7 {[%emt 0:00:09]} 9. Rd1 {[%emt 0:00:32]} b6 {[%emt 0:00:10]} 10. b3 {[%emt 0:00:05]} Ba6 {[%emt 0:02:55]} 11. Bf4 {[%emt 0:03:37]} Rc8 {[%emt 0:00:34]} 12. Nc3 {[%emt 0:01:12]} dxc4 {[%emt 0:00:50]} 13. bxc4 {[%emt 0:00:47]} Bxc4 {[%emt 0:03:13]} 14. Nd2 {[%emt 0:05:50]} Ba6 {[%emt 0:01:09]} 15. Qa4 {[%emt 0:00:28]} Bb7 {[%emt 0:00:10]} 16. Qxa7 {[%emt 0:01:19]} Ba8 {[%emt 0:00:12]} 17. e4 {[%emt 0:13:27]} Bb4 {[%emt 0:14:01]} 18. Rac1 {[%emt 0:06:29]} Nh5 {[%emt 0:11:59]} 19. a3 {[%emt 0:17:45]} Bxc3 {[%emt 0:20:21]} 20. Rxc3 {[%emt 0:00:08]} Nxf4 {[%emt 0:00:02]} 21. gxf4 {[%emt 0:00:08]} Rc7 {[%emt 0:00:04]} 22. Qa4 {[%emt 0:09:25]} Qh4 {[%emt 0:00:56]} 23. Rf3 {[%emt 0:10:56]} c5 {[%emt 0:01:16]} 24. f5 {[%emt 0:06:24]} exf5 {[%emt 0:10:08]} 25. Rxf5 {[%emt 0:00:32]} cxd4 {[%emt 0:00:16]} 26. Qxd4 {[%emt 0:04:55]} Nc5 {[%emt 0:00:08]} 27. Nf3 {[%emt 0:11:55]} Qxe4 {[%emt 0:01:27]} 28. Re5 {[%emt 0:00:05]} Qc2 {[%emt 0:06:07]} 29. Ne1 {[%emt 0:00:34]} Qg6 {[%emt 0:01:12]} 30. Qd6 {[%emt 0:01:02]} Rcc8 {[%emt 0:09:51]} 31. Qxg6 {[%emt 0:00:32]} fxg6 {[%emt 0:01:15]} 32. Re7 {[%emt 0:01:56]} Rf6 {[%emt 0:01:17]} 33. Bxa8 {[%emt 0:02:18]} Rxa8 {[%emt 0:00:03]} 34. Nc2 {[%emt 0:00:05]} h6 {[%emt 0:01:55]} 35. Rd2 {[%emt 0:00:56]} g5 {[%emt 0:00:13]} 36. Rde2 {[%emt 0:00:16]} Ra4 {[%emt 0:00:41]} 37. h3 {[%emt 0:01:19]} Kh7 {[%emt 0:05:45]} 38. R2e3 {[%emt 0:00:58]} Raf4 {[%emt 0:00:57]} 39. Re2 {[%emt 0:02:07]} Nd3 {[%emt 0:00:18]} 40. R7e6 {[%emt 0:00:00]} Rxf2 {[%emt 0:00:00]} 41. Rxf2 {[%emt 0:07:08]} Rxe6 {[%emt 0:06:47]} 42. Rd2 {[%emt 0:00:07]} Nf4 {[%emt 0:00:25]} 0-1

[Event "17th Aeroflot Open-A 2019"]
[Site "Moscow"]
[Date "2019.02.20"]
[Round "1.9"]
[White "Tsydypov, Zhamsaran"]
[Black "Korobov, Anton"]
[Result "1/2-1/2"]
[ECO "C84"]
[WhiteElo "2547"]
[BlackElo "2687"]
[Annotator "RC"]
[PlyCount "161"]
[EventDate "2019.02.19"]
[EventCountry "RUS"]
[SourceTitle "playchess.com"]
[Source "ChessBase"]
[SourceQuality "1"]
[TimeControl "40/5400+30:1800+30"]

1. e4 {[%emt 0:00:00]} e5 {[%emt 0:00:00]} 2. Nf3 {[%emt 0:00:48]} Nc6 {[%emt 0:00:00]} 3. Bb5 {[%emt 0:00:26]} a6 {[%emt 0:00:16]} 4. Ba4 {[%emt 0:00:05]} Nf6 {[%emt 0:00:25]} 5. O-O {[%emt 0:00:47]} Be7 {[%emt 0:00:10]} 6. d3 {[%emt 0:05:00]} d6 {[%emt 0:00:57]} 7. c3 {[%emt 0:04:16]} O-O {[%emt 0:00:19]} 8. Nbd2 {[%emt 0:00:33]} b5 {[%emt 0:02:14]} 9. Bc2 {[%emt 0:01:47]} Bb7 {[%emt 0:07:13]} 10. Re1 {[%emt 0:00:56]} Nb8 {[%emt 0:01:33]} 11. Nf1 {[%emt 0:04:18]} Nbd7 {[%emt 0:01:18]} 12. Ng3 {[%emt 0:02:27]} Re8 {[%emt 0:02:26]} 13. Bb3 {[%emt 0:05:41]} Nc5 {[%emt 0:02:50]} 14. Bc2 {[%emt 0:03:23]} Bf8 {[%emt 0:06:07]} 15. b4 {[%emt 0:03:46]} Ncd7 {[%emt 0:01:02]} 16. Bb3 {[%emt 0:01:07]} g6 {[%emt 0:09:37]} 17. Ng5 {[%emt 0:03:15]} Re7 {[%emt 0:01:11]} 18. f4 {[%emt 0:00:39]} exf4 {[%emt 0:04:21]} 19. Bxf4 {[%emt 0:00:22]} Bg7 {[%emt 0:01:44]} 20. a4 {[%emt 0:11:18]} h6 {[%emt 0:09:56]} 21. Nf3 {[%emt 0:01:02]} Ne5 {[%emt 0:01:33]} 22. Qd2 {[%emt 0:03:25]} Kh7 {[%emt 0:01:33]} 23. Rf1 {[%emt 0:08:26]} Nxf3+ {[%emt 0:06:07]} 24. gxf3 {[%emt 0:01:46]} c5 {[%emt 0:03:03]} 25. d4 {[%emt 0:02:00]} cxb4 {[%emt 0:03:36]} 26. cxb4 {[%emt 0:00:08]} bxa4 {[%emt 0:01:14]} 27. Bxa4 {[%emt 0:03:23]} Rc8 {[%emt 0:02:48]} 28. Be3 {[%emt 0:04:17]} Nd7 {[%emt 0:03:20]} 29. Rfc1 {[%emt 0:02:54]} Nb6 {[%emt 0:00:54]} 30. Bb3 {[%emt 0:00:50]} d5 {[%emt 0:04:07]} 31. Qd3 {[%emt 0:01:00]} dxe4 {[%emt 0:02:33]} 32. fxe4 {[%emt 0:00:37]} h5 {[%emt 0:05:14]} 33. Rxc8 {[%emt 0:09:10]} Qxc8 {[%emt 0:01:03]} 34. Rf1 {[%emt 0:03:32]} h4 {[%emt 0:05:19]} 35. d5 {[%emt 0:04:25]} Nd7 {[%emt 0:07:32]} 36. Bg5 {[%emt 0:02:04]} Ne5 {[%emt 0:00:05]} 37. Qe2 {[%emt 0:01:50]} Rd7 {[%emt 0:00:46]} 38. Bxh4 {[%emt 0:00:43]} Qc3 {[%emt 0:01:30]} 39. Ba4 {[%emt 0:01:53]} Rxd5 {[%emt 0:01:06]} 40. exd5 {[%emt 0:00:00]} Qd4+ {[%emt 0:00:00]} 41. Rf2 {[%emt 0:05:44]} Bxd5 {[%emt 0:07:05]} 42. Be7 {[%emt 0:05:12]} Nf3+ {[%emt 0:03:53]} 43. Kh1 {[%emt 0:03:29]} Ng5+ {[%emt 0:05:10]} 44. Rg2 {[%emt 0:02:54]} Nh3 {[%emt 0:01:22]} 45. Bc5 {[%emt 0:01:48]} Qa1+ {[%emt 0:02:28]} 46. Qd1 {[%emt 0:01:24]} Nf4 {[%emt 0:02:00]} 47. Qxa1 {[%emt 0:03:06]} Bxa1 {[%emt 0:00:07]} 48. Kg1 {[%emt 0:02:25]} Nxg2 {[%emt 0:00:26]} 49. b5 {[%emt 0:00:24]} axb5 {[%emt 0:01:50]} 50. Bxb5 {[%emt 0:00:05]} Nh4 {[%emt 0:00:11]} 51. Kf2 {[%emt 0:01:10]} f5 {[%emt 0:01:45]} 52. Bd3 {[%emt 0:04:14]} Bf6 {[%emt 0:01:10]} 53. Be3 {[%emt 0:00:23]} Kg7 {[%emt 0:00:27]} 54. Bf1 {[%emt 0:03:19]} Kf7 {[%emt 0:00:47]} 55. Ne2 {[%emt 0:00:28]} g5 {[%emt 0:00:56]} 56. Bd4 {[%emt 0:00:14]} Be7 {[%emt 0:00:33]} 57. Nc3 {[%emt 0:00:14]} Be6 {[%emt 0:00:28]} 58. Ne2 {[%emt 0:01:08]} Bd6 {[%emt 0:02:01]} 59. Ng3 {[%emt 0:00:40]} g4 {[%emt 0:01:29]} 60. Be2 {[%emt 0:01:03]} Kg6 {[%emt 0:01:13]} 61. Bb6 {[%emt 0:00:45]} f4 {[%emt 0:01:49]} 62. Bd3+ {[%emt 0:00:21]} Kh6 {[%emt 0:00:06]} 63. Ne2 {[%emt 0:01:28]} Kh5 {[%emt 0:02:14]} 64. Be4 {[%emt 0:00:41]} Bd7 {[%emt 0:00:36]} 65. Bd5 {[%emt 0:00:32]} Nf5 {[%emt 0:00:38]} 66. Nd4 {[%emt 0:02:32]} Ng7 {[%emt 0:02:54]} 67. Be4 {[%emt 0:01:43]} Be5 {[%emt 0:00:34]} 68. Nc6 {[%emt 0:00:22]} Bf6 {[%emt 0:00:20]} 69. Bd4 {[%emt 0:00:45]} Bh4+ {[%emt 0:00:13]} 70. Kg1 {[%emt 0:00:40]} Ne6 {[%emt 0:00:31]} 71. Bf2 {[%emt 0:01:04]} Ng5 {[%emt 0:01:40]} 72. Bxh4 {[%emt 0:00:36]} Nxe4 {[%emt 0:00:38]} 73. Ne5 {[%emt 0:00:11]} Kxh4 {[%emt 0:00:18]} 74. Nxd7 {[%emt 0:00:07]} Kh3 {[%emt 0:00:20]} 75. Ne5 {[%emt 0:00:23]} f3 {[%emt 0:00:12]} 76. Kf1 {[%emt 0:00:33]} f2 {[%emt 0:00:11]} 77. Nf3 {[%emt 0:00:14]} g3 {[%emt 0:01:22]} 78. hxg3 {[%emt 0:00:19]} Kxg3 {[%emt 0:00:07]} 79. Ke2 {[%emt 0:00:14]} Nd6 {[%emt 0:01:32]} 80. Ne1 {[%emt 0:00:53]} Nb7 {[%emt 0:00:31]} 81. Nd3 {[%emt 0:00:05]} 1/2-1/2

[Event "17th Aeroflot Open-A 2019"]
[Site "Moscow"]
[Date "2019.02.20"]
[Round "1.10"]
[White "Safarli, Eltaj"]
[Black "Hakobyan, Aram"]
[Result "1-0"]
[ECO "B23"]
[WhiteElo "2681"]
[BlackElo "2545"]
[Annotator "RC"]
[PlyCount "57"]
[EventDate "2019.02.19"]
[EventCountry "RUS"]
[SourceTitle "playchess.com"]
[Source "ChessBase"]
[SourceQuality "1"]
[TimeControl "40/5400+30:1800+30"]

1. e4 {[%emt 0:05:52]} c5 {[%emt 0:00:00]} 2. Nc3 {[%emt 0:00:05]} d6 {[%emt 0:00:00]} 3. Bb5+ {[%emt 0:00:07]} Bd7 {[%emt 0:00:00]} 4. Bxd7+ {[%emt 0:00:03]} Qxd7 {[%emt 0:00:12]} 5. d4 {[%emt 0:00:02]} cxd4 {[%emt 0:00:27]} 6. Qxd4 {[%emt 0:00:04]} Nc6 {[%emt 0:00:15]} 7. Qd3 {[%emt 0:00:03]} Nf6 {[%emt 0:01:16]} 8. Bg5 {[%emt 0:00:19]} e6 {[%emt 0:04:10]} 9. Bxf6 {[%emt 0:04:00]} gxf6 {[%emt 0:00:03]} 10. O-O-O {[%emt 0:00:45]} a6 {[%emt 0:03:46]} 11. f4 {[%emt 0:06:06]} O-O-O {[%emt 0:00:40]} 12. Nge2 {[%emt 0:00:58]} Kb8 {[%emt 0:03:23]} 13. Qh3 {[%emt 0:01:07]} h5 {[%emt 0:13:59]} 14. Rhf1 {[%emt 0:05:46]} b5 {[%emt 0:11:11]} 15. Kb1 {[%emt 0:09:20]} Na5 {[%emt 0:08:44]} 16. a3 {[%emt 0:02:57]} Bh6 {[%emt 0:14:29]} 17. f5 {[%emt 0:01:15]} Bg5 {[%emt 0:06:04]} 18. Nd4 {[%emt 0:06:59]} Rhe8 {[%emt 0:04:17]} 19. Qxh5 {[%emt 0:06:12]} Nc4 {[%emt 0:05:37]} 20. Rf2 {[%emt 0:03:23]} Rh8 {[%emt 0:04:31]} 21. Qe2 {[%emt 0:03:04]} Rxh2 {[%emt 0:00:13]} 22. a4 {[%emt 0:02:47]} Ne3 {[%emt 0:09:27]} 23. Re1 {[%emt 0:05:10]} b4 {[%emt 0:00:21]} 24. Qxa6 {[%emt 0:03:55]} bxc3 {[%emt 0:02:45]} 25. Qb6+ {[%emt 0:02:02]} Kc8 {[%emt 0:02:59]} 26. Nb5 {[%emt 0:00:17]} Rxg2 {[%emt 0:00:57]} 27. Rxg2 {[%emt 0:02:04]} Nxg2 {[%emt 0:00:07]} 28. Re2 {[%emt 0:00:46]} Nf4 {[%emt 0:02:03]} 29. Rh2 {[%emt 0:00:35]} 1-0

[Event "17th Aeroflot Open-A 2019"]
[Site "Moscow"]
[Date "2019.02.19"]
[Round "1.10"]
[White "Safarli, Eltaj"]
[Black "Hakobyan, Aram"]
[Result "*"]
[WhiteElo "2681"]
[BlackElo "2545"]
[Annotator "ChessBase"]
[PlyCount "28"]
[EventDate "2019.02.19"]
[EventCountry "RUS"]
[SourceTitle "playchess.com"]
[Source "ChessBase"]
[SourceQuality "1"]
[TimeControl "40/5400+30:1800+30"]

1. e4 {[%emt 0:00:00]} e6 {[%emt 0:00:00]} 2. d4 {[%emt 0:00:00]} d5 {[%emt 0:00:00]} 3. Nd2 {[%emt 0:00:00]} c5 {[%emt 0:00:00]} 4. Ngf3 {[%emt 0:00:00]} cxd4 {[%emt 0:00:00]} 5. Nxd4 {[%emt 0:00:00]} Nc6 {[%emt 0:00:00]} 6. Bb5 {[%emt 0:00:00]} Bd7 {[%emt 0:00:00]} 7. Nxc6 {[%emt 0:00:00]} Bxc6 {[%emt 0:00:00]} 8. Bxc6+ {[%emt 0:00:00]} bxc6 {[%emt 0:00:00]} 9. c4 {[%emt 0:00:00]} Nf6 {[%emt 0:00:00]} 10. Qa4 {[%emt 0:00:00]} Qd7 {[%emt 0:00:00]} 11. e5 {[%emt 0:00:00]} Ng8 {[%emt 0:00:00]} 12. O-O {[%emt 0:00:00]} Ne7 {[%emt 0:00:00]} 13. Nf3 {[%emt 0:00:00]} c5 {[%emt 0:02:48]} 14. Qc2 {[%emt 0:15:39]} d4 {[%emt 0:02:30]} *